[Event "Early-Titled-Tuesday-Blitz-March-26-2024"]
[Site "Chess.com"]
[Date "2024.03.26"]
[Round "10"]
[White "emeli_chess"]
[Black "gorgeous1083"]
[Result "1-0"]
[WhiteElo "2394"]
[BlackElo "2063"]
[TimeControl "180+1"]
[EndTime "9:53:37 PDT"]
[Termination "emeli_chess won by checkmate"]

1. d4 {[%clk 0:03:00.9]} 1... Nf6 {[%clk 0:02:59.6]} 2. c4 {[%clk 0:03:00.7]}
2... e6 {[%clk 0:03:00.1]} 3. Nc3 {[%clk 0:03:00.5]} 3... d5 {[%clk 0:03:00.7]}
4. cxd5 {[%clk 0:03:00.4]} 4... exd5 {[%clk 0:03:00.6]} 5. Bg5 {[%clk
0:03:00.3]} 5... c6 {[%clk 0:03:00.3]} 6. Qc2 {[%clk 0:03:00]} 6... Be7 {[%clk
0:02:58.8]} 7. e3 {[%clk 0:02:59.8]} 7... h6 {[%clk 0:02:57.4]} 8. Bh4 {[%clk
0:02:59.8]} 8... Bg4 {[%clk 0:02:53.2]} 9. Bd3 {[%clk 0:02:58.5]} 9... Nbd7
{[%clk 0:02:51.6]} 10. h3 {[%clk 0:02:55.6]} 10... Be6 {[%clk 0:02:50.9]} 11. f4
{[%clk 0:02:54]} 11... Nb6 {[%clk 0:02:45.2]} 12. Nf3 {[%clk 0:02:51]} 12...
Nfd7 {[%clk 0:02:41.2]} 13. Bxe7 {[%clk 0:02:43.2]} 13... Qxe7 {[%clk
0:02:40.2]} 14. f5 {[%clk 0:02:41.8]} 14... Bxf5 {[%clk 0:02:27.9]} 15. Bxf5
{[%clk 0:02:41.1]} 15... Qxe3+ {[%clk 0:02:27.5]} 16. Qe2 {[%clk 0:02:30]} 16...
Nc4 {[%clk 0:02:25.6]} 17. Bxd7+ {[%clk 0:02:23]} 17... Kxd7 {[%clk 0:02:24.9]}
18. Qxe3 {[%clk 0:02:22.9]} 18... Nxe3 {[%clk 0:02:24.2]} 19. Kf2 {[%clk
0:02:23.3]} 19... Nf5 {[%clk 0:02:05.2]} 20. Rhe1 {[%clk 0:02:21.9]} 20... Nd6
{[%clk 0:02:02.9]} 21. Ne5+ {[%clk 0:02:13.4]} 21... Kc7 {[%clk 0:02:00.1]} 22.
Kg1 {[%clk 0:01:53.8]} 22... g5 {[%clk 0:01:45.7]} 23. Nxf7 {[%clk 0:01:50.7]}
23... Rh7 {[%clk 0:01:33.4]} 24. Nxd6 {[%clk 0:01:42.9]} 24... Kxd6 {[%clk
0:01:34.3]} 25. Re2 {[%clk 0:01:41.4]} 25... Rf8 {[%clk 0:01:24.5]} 26. Rae1
{[%clk 0:01:40.4]} 26... h5 {[%clk 0:01:22.9]} 27. Re6+ {[%clk 0:01:38.8]} 27...
Kd7 {[%clk 0:01:22.5]} 28. b4 {[%clk 0:01:29]} 28... a6 {[%clk 0:01:19.3]} 29.
Na4 {[%clk 0:01:25.4]} 29... Rff7 {[%clk 0:01:13.1]} 30. Nc5+ {[%clk 0:01:24.8]}
30... Kc7 {[%clk 0:01:13.5]} 31. a4 {[%clk 0:01:24.1]} 31... h4 {[%clk
0:01:05.6]} 32. a5 {[%clk 0:01:23.8]} 32... Rhg7 {[%clk 0:00:57.8]} 33. R1e5
{[%clk 0:01:15.5]} 33... Kc8 {[%clk 0:00:54.5]} 34. Rd6 {[%clk 0:01:09.5]} 34...
Kc7 {[%clk 0:00:51.5]} 35. Rh6 {[%clk 0:01:05.1]} 35... Rg8 {[%clk 0:00:39]} 36.
Ne6+ {[%clk 0:00:47]} 36... Kc8 {[%clk 0:00:33.3]} 37. Nxg5 {[%clk 0:00:46.2]}
37... Rfg7 {[%clk 0:00:32]} 38. Rh5 {[%clk 0:00:42.3]} 38... Rg6 {[%clk
0:00:29.9]} 39. Kf2 {[%clk 0:00:39.8]} 39... Rf6+ {[%clk 0:00:27.4]} 40. Ke3
{[%clk 0:00:39.1]} 40... Rfg6 {[%clk 0:00:12.5]} 41. Kf4 {[%clk 0:00:38.7]}
41... Rf8+ {[%clk 0:00:12.7]} 42. Kg4 {[%clk 0:00:29.6]} 42... Rf2 {[%clk
0:00:12.5]} 43. Rh7 {[%clk 0:00:27.4]} 43... Rxg2+ {[%clk 0:00:11.4]} 44. Kxh4
{[%clk 0:00:27.7]} 44... Rg8 {[%clk 0:00:09.9]} 45. Kh5 {[%clk 0:00:25.2]} 45...
Rg3 {[%clk 0:00:08.6]} 46. h4 {[%clk 0:00:25.1]} 46... Rg1 {[%clk 0:00:08]} 47.
Ree7 {[%clk 0:00:24.6]} 47... Rd1 {[%clk 0:00:04.2]} 48. Rc7+ {[%clk 0:00:24.2]}
48... Kd8 {[%clk 0:00:04.3]} 49. Ne6+ {[%clk 0:00:22.8]} 49... Ke8 {[%clk
0:00:03.2]} 50. Rhe7# {[%clk 0:00:22.3]} 1-0

[Event "Early-Titled-Tuesday-Blitz-March-26-2024"]
[Site "Chess.com"]
[Date "2024.03.26"]
[Round "10"]
[White "only_strong_moves"]
[Black "MalyDominator"]
[Result "0-1"]
[WhiteElo "2683"]
[BlackElo "2583"]
[TimeControl "180+1"]
[EndTime "9:53:38 PDT"]
[Termination "MalyDominator won by resignation"]

1. Nc3 {[%clk 0:03:00.9]} 1... c5 {[%clk 0:02:57.5]} 2. Nf3 {[%clk 0:03:00.6]}
2... Nc6 {[%clk 0:02:42.5]} 3. d4 {[%clk 0:02:59.7]} 3... cxd4 {[%clk 0:02:35]}
4. Nxd4 {[%clk 0:03:00.6]} 4... Nf6 {[%clk 0:02:34.8]} 5. Bg5 {[%clk 0:02:55.4]}
5... d6 {[%clk 0:02:34.7]} 6. g3 {[%clk 0:02:51.7]} 6... Bd7 {[%clk 0:02:30.6]}
7. Bg2 {[%clk 0:02:50.6]} 7... Qb6 {[%clk 0:02:30.8]} 8. Nb3 {[%clk 0:02:46.5]}
8... a5 {[%clk 0:02:26.3]} 9. Bxf6 {[%clk 0:02:45]} 9... gxf6 {[%clk 0:02:26]}
10. Nd5 {[%clk 0:02:45.9]} 10... Qd8 {[%clk 0:02:25.3]} 11. O-O {[%clk
0:02:45.9]} 11... e6 {[%clk 0:02:25.2]} 12. Ne3 {[%clk 0:02:45]} 12... a4 {[%clk
0:02:24.2]} 13. Nd2 {[%clk 0:02:44.9]} 13... Be7 {[%clk 0:02:22.8]} 14. c4
{[%clk 0:02:45]} 14... f5 {[%clk 0:02:22.3]} 15. Nc2 {[%clk 0:02:42.9]} 15...
Bf6 {[%clk 0:02:20.2]} 16. Rb1 {[%clk 0:02:42.4]} 16... O-O {[%clk 0:02:19]} 17.
e4 {[%clk 0:02:42.5]} 17... f4 {[%clk 0:02:07.6]} 18. gxf4 {[%clk 0:02:41.9]}
18... Kh8 {[%clk 0:02:08.2]} 19. Kh1 {[%clk 0:02:41.9]} 19... Rg8 {[%clk
0:02:06.5]} 20. c5 {[%clk 0:02:40.4]} 20... dxc5 {[%clk 0:02:00.9]} 21. e5
{[%clk 0:02:40.8]} 21... Be7 {[%clk 0:01:58.9]} 22. Ne4 {[%clk 0:02:41.5]} 22...
Bc8 {[%clk 0:01:49.4]} 23. Qh5 {[%clk 0:02:38.9]} 23... Qf8 {[%clk 0:01:48.5]}
24. Rg1 {[%clk 0:02:33.2]} 24... Rg6 {[%clk 0:01:36.4]} 25. Ng3 {[%clk
0:02:11.5]} 25... Bd7 {[%clk 0:01:31.2]} 26. Be4 {[%clk 0:02:11.2]} 26... Rh6
{[%clk 0:01:31.1]} 27. Qf3 {[%clk 0:02:11]} 27... f5 {[%clk 0:01:20]} 28. exf6
{[%clk 0:02:06.2]} 28... Qxf6 {[%clk 0:01:20.1]} 29. Rbd1 {[%clk 0:01:58.5]}
29... Nd4 {[%clk 0:01:11]} 30. Nxd4 {[%clk 0:01:55.5]} 30... cxd4 {[%clk
0:01:11.9]} 31. Bxb7 {[%clk 0:01:45.1]} 31... Rf8 {[%clk 0:01:11.3]} 32. Bc6
{[%clk 0:01:44.2]} 32... Bxc6 {[%clk 0:01:05]} 33. Qxc6 {[%clk 0:01:45.1]} 33...
Qxf4 {[%clk 0:01:04.7]} 34. Rg2 {[%clk 0:01:45.8]} 34... e5 {[%clk 0:00:54.3]}
35. Qd7 {[%clk 0:01:39.5]} 35... Qf3 {[%clk 0:00:43.7]} 36. Re1 {[%clk
0:01:26.6]} 36... Rff6 {[%clk 0:00:24.6]} 37. Qe8+ {[%clk 0:01:24.2]} 37... Bf8
{[%clk 0:00:23.6]} 38. Qxe5 {[%clk 0:01:23.4]} 38... Bg7 {[%clk 0:00:23.1]} 39.
Qb8+ {[%clk 0:01:15.3]} 39... Rf8 {[%clk 0:00:22.7]} 40. Qb5 {[%clk 0:01:05.2]}
40... d3 {[%clk 0:00:20.3]} 41. Qxa4 {[%clk 0:00:51.1]} 41... d2 {[%clk
0:00:20.1]} 42. Rd1 {[%clk 0:00:51.1]} 42... Re6 {[%clk 0:00:20.1]} 43. Rg1
{[%clk 0:00:11.9]} 43... Re1 {[%clk 0:00:19]} 44. Nf1 {[%clk 0:00:02.3]} 44...
d1=Q {[%clk 0:00:18.5]} 45. Qa7 {[%clk 0:00:02.3]} 45... Rg8 {[%clk 0:00:13.4]}
46. Qe3 {[%clk 0:00:02]} 46... Qxe3 {[%clk 0:00:12.8]} 47. fxe3 {[%clk
0:00:02.2]} 47... Rxf1 {[%clk 0:00:13]} 48. Rxf1 {[%clk 0:00:03.1]} 48... Qxf1+
{[%clk 0:00:13]} 49. Rg1 {[%clk 0:00:04]} 49... Qf3+ {[%clk 0:00:13.6]} 50. Rg2
{[%clk 0:00:04.9]} 50... Be5 {[%clk 0:00:13.7]} 0-1

[Event "Early-Titled-Tuesday-Blitz-March-26-2024"]
[Site "Chess.com"]
[Date "2024.03.26"]
[Round "10"]
[White "kai_nov"]
[Black "nikitakhoroshev"]
[Result "1/2-1/2"]
[WhiteElo "2335"]
[BlackElo "2605"]
[TimeControl "180+1"]
[EndTime "9:53:38 PDT"]
[Termination "Game drawn - insufficient material"]

1. e4 {[%clk 0:03:00.9]} 1... e5 {[%clk 0:02:58.1]} 2. Nf3 {[%clk 0:03:00.7]}
2... Nc6 {[%clk 0:02:58.1]} 3. Bc4 {[%clk 0:03:00]} 3... Nf6 {[%clk 0:02:57.6]}
4. O-O {[%clk 0:02:59.4]} 4... Nxe4 {[%clk 0:02:55.7]} 5. Re1 {[%clk 0:02:59.2]}
5... d5 {[%clk 0:02:55.9]} 6. d3 {[%clk 0:02:57.8]} 6... dxc4 {[%clk 0:02:36.3]}
7. Rxe4 {[%clk 0:02:55.3]} 7... cxd3 {[%clk 0:02:36.4]} 8. Nxe5 {[%clk
0:02:46.1]} 8... Nxe5 {[%clk 0:02:33.6]} 9. Rxe5+ {[%clk 0:02:44.9]} 9... Be6
{[%clk 0:02:33.6]} 10. cxd3 {[%clk 0:02:42.7]} 10... Bd6 {[%clk 0:02:31.6]} 11.
Re1 {[%clk 0:02:40.6]} 11... Qh4 {[%clk 0:02:29.4]} 12. g3 {[%clk 0:02:38.3]}
12... Qh3 {[%clk 0:02:28]} 13. Qf3 {[%clk 0:02:30.5]} 13... O-O-O {[%clk
0:02:24.5]} 14. Nc3 {[%clk 0:02:29.5]} 14... h5 {[%clk 0:02:23.1]} 15. Be3
{[%clk 0:02:27.1]} 15... h4 {[%clk 0:02:19.7]} 16. Qg2 {[%clk 0:02:10.8]} 16...
hxg3 {[%clk 0:02:16.6]} 17. fxg3 {[%clk 0:01:57.2]} 17... Rh5 {[%clk 0:01:58.9]}
18. Qxh3 {[%clk 0:01:55.7]} 18... Rxh3 {[%clk 0:01:58.3]} 19. a4 {[%clk
0:01:51.2]} 19... Rdh8 {[%clk 0:01:57.2]} 20. Re2 {[%clk 0:01:49.6]} 20... a6
{[%clk 0:01:51]} 21. Ne4 {[%clk 0:01:47.4]} 21... Be7 {[%clk 0:01:47.3]} 22. Rf1
{[%clk 0:01:33.3]} 22... f6 {[%clk 0:01:45.5]} 23. Bc5 {[%clk 0:01:27.7]} 23...
Bd8 {[%clk 0:01:35.2]} 24. Nf2 {[%clk 0:01:16.5]} 24... b6 {[%clk 0:00:58.2]}
25. Rxe6 {[%clk 0:01:05.6]} 25... bxc5 {[%clk 0:00:58]} 26. Nxh3 {[%clk
0:01:05.6]} 26... Rxh3 {[%clk 0:00:58]} 27. Rxa6 {[%clk 0:01:04.2]} 27... Kb7
{[%clk 0:00:52.2]} 28. Re6 {[%clk 0:01:03.2]} 28... Rh5 {[%clk 0:00:43.3]} 29.
Rb1 {[%clk 0:01:00.6]} 29... c6 {[%clk 0:00:42.9]} 30. b4 {[%clk 0:00:56.8]}
30... cxb4 {[%clk 0:00:41.8]} 31. Rxb4+ {[%clk 0:00:55.9]} 31... Bb6+ {[%clk
0:00:42.1]} 32. Kg2 {[%clk 0:00:55.7]} 32... Kc7 {[%clk 0:00:40.7]} 33. Re7+
{[%clk 0:00:52.1]} 33... Kd6 {[%clk 0:00:40.7]} 34. Rxg7 {[%clk 0:00:48.4]}
34... Bc5 {[%clk 0:00:41.1]} 35. Rc4 {[%clk 0:00:47.3]} 35... Rd5 {[%clk
0:00:41]} 36. a5 {[%clk 0:00:36.3]} 36... Rxd3 {[%clk 0:00:40.2]} 37. Ra4 {[%clk
0:00:33.4]} 37... Rd2+ {[%clk 0:00:40.1]} 38. Kh3 {[%clk 0:00:30.5]} 38... Bg1
{[%clk 0:00:40.2]} 39. a6 {[%clk 0:00:23.4]} 39... Rxh2+ {[%clk 0:00:39.2]} 40.
Kg4 {[%clk 0:00:21.6]} 40... Rh8 {[%clk 0:00:33.9]} 41. a7 {[%clk 0:00:20.8]}
41... Ra8 {[%clk 0:00:33.9]} 42. Kf5 {[%clk 0:00:20.9]} 42... Kc5 {[%clk
0:00:31.9]} 43. Kxf6 {[%clk 0:00:20.2]} 43... Kb5 {[%clk 0:00:31.9]} 44. Ra2
{[%clk 0:00:13.5]} 44... Bd4+ {[%clk 0:00:31.4]} 45. Kf7 {[%clk 0:00:13.7]}
45... Bxg7 {[%clk 0:00:32.1]} 46. Kxg7 {[%clk 0:00:14]} 46... Kb6 {[%clk
0:00:33]} 47. g4 {[%clk 0:00:14.3]} 47... Rxa7+ {[%clk 0:00:32.4]} 48. Rxa7
{[%clk 0:00:14.8]} 48... Kxa7 {[%clk 0:00:33]} 49. g5 {[%clk 0:00:15.4]} 49...
c5 {[%clk 0:00:33.6]} 50. Kf6 {[%clk 0:00:15]} 50... c4 {[%clk 0:00:34.5]} 51.
g6 {[%clk 0:00:15.5]} 51... c3 {[%clk 0:00:35.3]} 52. g7 {[%clk 0:00:16]} 52...
c2 {[%clk 0:00:36.2]} 53. g8=Q {[%clk 0:00:16.4]} 53... c1=Q {[%clk 0:00:37.1]}
54. Qa2+ {[%clk 0:00:16.3]} 54... Kb6 {[%clk 0:00:36.7]} 55. Qb3+ {[%clk
0:00:16.4]} 55... Kc5 {[%clk 0:00:36.7]} 56. Qe6 {[%clk 0:00:15.3]} 56... Kb4
{[%clk 0:00:35.4]} 57. Qe7+ {[%clk 0:00:14.4]} 57... Kb3 {[%clk 0:00:35]} 58.
Qe6+ {[%clk 0:00:14.3]} 58... Kb2 {[%clk 0:00:34.7]} 59. Qe5+ {[%clk 0:00:14.5]}
59... Kb1 {[%clk 0:00:34.9]} 60. Qe4+ {[%clk 0:00:14.8]} 60... Qc2 {[%clk
0:00:34.8]} 61. Qxc2+ {[%clk 0:00:14.9]} 61... Kxc2 {[%clk 0:00:35.1]} 1/2-1/2

[Event "Early-Titled-Tuesday-Blitz-March-26-2024"]
[Site "Chess.com"]
[Date "2024.03.26"]
[Round "10"]
[White "Boorchess"]
[Black "leoduarte"]
[Result "0-1"]
[WhiteElo "2528"]
[BlackElo "2401"]
[TimeControl "180+1"]
[EndTime "9:53:39 PDT"]
[Termination "leoduarte won by resignation"]

1. d4 {[%clk 0:03:00.2]} 1... d5 {[%clk 0:02:50]} 2. Nf3 {[%clk 0:02:56.5]} 2...
Nf6 {[%clk 0:02:49.4]} 3. Bf4 {[%clk 0:02:56.3]} 3... c5 {[%clk 0:02:42.2]} 4.
e3 {[%clk 0:02:55.4]} 4... Nc6 {[%clk 0:02:42.8]} 5. Nbd2 {[%clk 0:02:53.6]}
5... Nh5 {[%clk 0:02:42.4]} 6. Be5 {[%clk 0:02:45.5]} 6... f6 {[%clk 0:02:37.6]}
7. Bg3 {[%clk 0:02:43.9]} 7... e6 {[%clk 0:02:33.5]} 8. c4 {[%clk 0:02:41.6]}
8... Nxg3 {[%clk 0:02:29.1]} 9. hxg3 {[%clk 0:02:41.2]} 9... cxd4 {[%clk
0:02:28]} 10. exd4 {[%clk 0:02:36]} 10... Bb4 {[%clk 0:02:15]} 11. a3 {[%clk
0:02:26.2]} 11... Bxd2+ {[%clk 0:02:09.6]} 12. Qxd2 {[%clk 0:02:26.3]} 12... Ne7
{[%clk 0:01:34]} 13. c5 {[%clk 0:02:14.7]} 13... b6 {[%clk 0:01:30.9]} 14. b4
{[%clk 0:02:09.6]} 14... a5 {[%clk 0:01:29]} 15. b5 {[%clk 0:01:36]} 15... bxc5
{[%clk 0:01:21.4]} 16. dxc5 {[%clk 0:01:35.8]} 16... e5 {[%clk 0:01:21.4]} 17.
b6 {[%clk 0:01:17.2]} 17... O-O {[%clk 0:01:16.9]} 18. O-O-O {[%clk 0:01:07.8]}
18... Bf5 {[%clk 0:01:12.6]} 19. Kb2 {[%clk 0:01:03.7]} 19... Qd7 {[%clk
0:01:04]} 20. Rh4 {[%clk 0:00:52.6]} 20... Rfc8 {[%clk 0:01:02.3]} 21. Rc1
{[%clk 0:00:50]} 21... d4 {[%clk 0:00:32.5]} 22. Bc4+ {[%clk 0:00:39.8]} 22...
Kh8 {[%clk 0:00:30.7]} 23. Rch1 {[%clk 0:00:25.1]} 23... Rxc5 {[%clk 0:00:21.4]}
24. Rxh7+ {[%clk 0:00:24.6]} 24... Bxh7 {[%clk 0:00:19.3]} 25. Bd3 {[%clk
0:00:23.5]} 25... e4 {[%clk 0:00:11.5]} 26. Bxe4 {[%clk 0:00:22.8]} 26... Qb5+
{[%clk 0:00:12.2]} 27. Ka1 {[%clk 0:00:22.5]} 27... Rh5 {[%clk 0:00:12.6]} 28.
Rb1 {[%clk 0:00:20.1]} 28... Qa4 {[%clk 0:00:12.1]} 29. Bxa8 {[%clk 0:00:11.8]}
29... Bxb1 {[%clk 0:00:11.6]} 30. Kxb1 {[%clk 0:00:10.5]} 30... Qxa3 {[%clk
0:00:07.5]} 31. Qb2 {[%clk 0:00:09.8]} 31... Qxb2+ {[%clk 0:00:07.1]} 32. Kxb2
{[%clk 0:00:10.3]} 32... Rb5+ {[%clk 0:00:07.7]} 33. Kc2 {[%clk 0:00:11.2]}
33... Rxb6 {[%clk 0:00:08.3]} 34. Nxd4 {[%clk 0:00:11.8]} 34... Kg8 {[%clk
0:00:06.7]} 35. f3 {[%clk 0:00:11.7]} 35... Kf7 {[%clk 0:00:07]} 36. Be4 {[%clk
0:00:11.7]} 36... g6 {[%clk 0:00:06.7]} 37. Bd3 {[%clk 0:00:11.7]} 37... f5
{[%clk 0:00:06.7]} 38. Bc4+ {[%clk 0:00:12]} 38... Kf6 {[%clk 0:00:07.1]} 39.
Kc3 {[%clk 0:00:12.5]} 39... Nc6 {[%clk 0:00:06.7]} 40. Nb3 {[%clk 0:00:11.7]}
40... a4 {[%clk 0:00:06]} 41. Nc5 {[%clk 0:00:11.7]} 41... Rb4 {[%clk
0:00:04.5]} 42. Nd7+ {[%clk 0:00:09.7]} 42... Ke7 {[%clk 0:00:03.9]} 43. Nc5
{[%clk 0:00:08.8]} 43... Kd6 {[%clk 0:00:03.9]} 44. Nd3 {[%clk 0:00:09]} 44...
Rb8 {[%clk 0:00:02.6]} 45. Nf4 {[%clk 0:00:09]} 45... a3 {[%clk 0:00:02.5]} 46.
Nxg6 {[%clk 0:00:09.1]} 46... Ne5 {[%clk 0:00:02.6]} 47. Ba2 {[%clk 0:00:08.8]}
47... Nxg6 {[%clk 0:00:02.7]} 0-1

[Event "Early-Titled-Tuesday-Blitz-March-26-2024"]
[Site "Chess.com"]
[Date "2024.03.26"]
[Round "10"]
[White "Zampronha1971"]
[Black "Tugrik1969"]
[Result "0-1"]
[WhiteElo "2366"]
[BlackElo "2508"]
[TimeControl "180+1"]
[EndTime "9:53:42 PDT"]
[Termination "Tugrik1969 won by resignation"]

1. e4 {[%clk 0:03:00.9]} 1... c5 {[%clk 0:02:59.5]} 2. Nf3 {[%clk 0:03:01.4]}
2... d6 {[%clk 0:03:00]} 3. d4 {[%clk 0:03:01.9]} 3... cxd4 {[%clk 0:03:00.9]}
4. Nxd4 {[%clk 0:03:02.4]} 4... Nf6 {[%clk 0:03:01.2]} 5. Nc3 {[%clk 0:03:02.9]}
5... g6 {[%clk 0:03:01.9]} 6. Be3 {[%clk 0:03:02.8]} 6... Bg7 {[%clk 0:03:02.5]}
7. f3 {[%clk 0:03:03.3]} 7... O-O {[%clk 0:03:02.7]} 8. Qd2 {[%clk 0:03:04]}
8... Nc6 {[%clk 0:03:03]} 9. Bc4 {[%clk 0:03:03.5]} 9... Nxd4 {[%clk 0:03:02.2]}
10. Bxd4 {[%clk 0:03:03]} 10... Be6 {[%clk 0:03:02.9]} 11. Bb3 {[%clk
0:03:01.9]} 11... Qa5 {[%clk 0:03:00.4]} 12. O-O-O {[%clk 0:03:00.1]} 12... b5
{[%clk 0:03:00.5]} 13. Kb1 {[%clk 0:02:57.5]} 13... b4 {[%clk 0:03:00.2]} 14.
Nd5 {[%clk 0:02:56.3]} 14... Bxd5 {[%clk 0:02:57.5]} 15. exd5 {[%clk 0:02:55.1]}
15... Qb5 {[%clk 0:02:57.6]} 16. Rhe1 {[%clk 0:02:50.7]} 16... a5 {[%clk
0:02:53.1]} 17. Qe2 {[%clk 0:02:50.4]} 17... Qxe2 {[%clk 0:02:52.2]} 18. Rxe2
{[%clk 0:02:50.4]} 18... a4 {[%clk 0:02:35.7]} 19. Bc4 {[%clk 0:02:50.4]} 19...
Rfc8 {[%clk 0:02:35.6]} 20. b3 {[%clk 0:02:49.3]} 20... Kf8 {[%clk 0:02:13.4]}
21. Rde1 {[%clk 0:02:45.2]} 21... Rc7 {[%clk 0:01:55.8]} 22. g4 {[%clk 0:02:44]}
22... Rb7 {[%clk 0:01:40.6]} 23. h4 {[%clk 0:02:28.6]} 23... h5 {[%clk 0:01:37]}
24. Rg2 {[%clk 0:01:46]} 24... Ne8 {[%clk 0:01:30.8]} 25. Bb2 {[%clk 0:01:31.5]}
25... Bxb2 {[%clk 0:01:26]} 26. Kxb2 {[%clk 0:01:31.7]} 26... Nf6 {[%clk
0:01:23.7]} 27. g5 {[%clk 0:01:24.8]} 27... Ne8 {[%clk 0:01:23.7]} 28. f4 {[%clk
0:01:25.1]} 28... Ng7 {[%clk 0:01:23.7]} 29. Bd3 {[%clk 0:01:19.9]} 29... Rba7
{[%clk 0:01:12.5]} 30. Kb1 {[%clk 0:01:17.9]} 30... Rc7 {[%clk 0:01:01.6]} 31.
Rge2 {[%clk 0:01:15.2]} 31... Ra5 {[%clk 0:01:00.5]} 32. Re4 {[%clk 0:01:14]}
32... Rb7 {[%clk 0:00:58.3]} 33. Rc4 {[%clk 0:01:12.3]} 33... Nf5 {[%clk
0:00:53.6]} 34. Bxf5 {[%clk 0:01:10.8]} 34... gxf5 {[%clk 0:00:53.1]} 35. Rc8+
{[%clk 0:01:09.9]} 35... Kg7 {[%clk 0:00:53.2]} 36. Re8 {[%clk 0:01:07.2]} 36...
axb3 {[%clk 0:00:52.4]} 37. cxb3 {[%clk 0:01:05.2]} 37... Rxd5 {[%clk
0:00:45.9]} 38. R1xe7 {[%clk 0:00:56.7]} 38... Rxe7 {[%clk 0:00:46]} 39. Rxe7
{[%clk 0:00:57.6]} 39... Rd4 {[%clk 0:00:46.5]} 40. Rd7 {[%clk 0:00:54.3]} 40...
Rxf4 {[%clk 0:00:46.3]} 41. Rxd6 {[%clk 0:00:54.6]} 41... Rxh4 {[%clk
0:00:46.9]} 42. Rf6 {[%clk 0:00:48.7]} 42... f4 {[%clk 0:00:42.4]} 43. a4 {[%clk
0:00:47.1]} 43... bxa3 {[%clk 0:00:42]} 44. Ka2 {[%clk 0:00:47.3]} 44... Rg4
{[%clk 0:00:36.7]} 45. Kxa3 {[%clk 0:00:45.8]} 45... h4 {[%clk 0:00:33.2]} 46.
b4 {[%clk 0:00:44.9]} 46... h3 {[%clk 0:00:30.4]} 47. Rh6 {[%clk 0:00:39.8]}
47... Rxg5 {[%clk 0:00:29.7]} 48. Rh4 {[%clk 0:00:34.1]} 48... Kg6 {[%clk
0:00:22]} 49. Ka4 {[%clk 0:00:33.8]} 49... Rh5 {[%clk 0:00:21.3]} 50. Rg4+
{[%clk 0:00:30.2]} 50... Kf5 {[%clk 0:00:20.5]} 51. Rg1 {[%clk 0:00:31.1]} 51...
h2 {[%clk 0:00:20.5]} 52. Rh1 {[%clk 0:00:31.4]} 52... Kg4 {[%clk 0:00:20.3]}
53. b5 {[%clk 0:00:31.5]} 53... Rxb5 {[%clk 0:00:20.3]} 54. Kxb5 {[%clk
0:00:30.5]} 54... Kg3 {[%clk 0:00:20.8]} 55. Kc4 {[%clk 0:00:26.6]} 55... Kg2
{[%clk 0:00:20.4]} 56. Rd1 {[%clk 0:00:25.4]} 56... h1=Q {[%clk 0:00:20.1]} 57.
Rxh1 {[%clk 0:00:25.3]} 57... Kxh1 {[%clk 0:00:20.4]} 58. Kd3 {[%clk 0:00:26.1]}
58... Kg2 {[%clk 0:00:20.7]} 0-1

[Event "Early-Titled-Tuesday-Blitz-March-26-2024"]
[Site "Chess.com"]
[Date "2024.03.26"]
[Round "10"]
[White "wild3000"]
[Black "Chxss_Khxsbu"]
[Result "0-1"]
[WhiteElo "2432"]
[BlackElo "1833"]
[TimeControl "180+1"]
[EndTime "9:53:44 PDT"]
[Termination "Chxss_Khxsbu won on time"]

1. d4 {[%clk 0:01:32.3]} 1... Nf6 {[%clk 0:02:58.5]} 2. Nf3 {[%clk 0:01:32.3]}
2... e6 {[%clk 0:02:57.9]} 3. g3 {[%clk 0:01:32.9]} 3... d5 {[%clk 0:02:57.1]}
4. Bg2 {[%clk 0:01:33.7]} 4... c5 {[%clk 0:02:55.7]} 5. O-O {[%clk 0:01:34.3]}
5... Nc6 {[%clk 0:02:55.8]} 6. c3 {[%clk 0:01:34.2]} 6... cxd4 {[%clk 0:02:54]}
7. Nxd4 {[%clk 0:01:34.2]} 7... Be7 {[%clk 0:02:50.9]} 8. Nb3 {[%clk 0:01:28.3]}
8... O-O {[%clk 0:02:49.3]} 9. N1d2 {[%clk 0:01:28.2]} 9... a6 {[%clk
0:02:46.8]} 10. e4 {[%clk 0:01:28.4]} 10... dxe4 {[%clk 0:02:45.6]} 11. Nxe4
{[%clk 0:01:29.3]} 11... Qxd1 {[%clk 0:02:44.6]} 12. Rxd1 {[%clk 0:01:29.2]}
12... Ne5 {[%clk 0:02:40.7]} 13. Na5 {[%clk 0:01:18.9]} 13... Nd5 {[%clk
0:02:35.7]} 14. c4 {[%clk 0:01:04.2]} 14... Nb4 {[%clk 0:02:18.8]} 15. Bd2
{[%clk 0:00:54.3]} 15... Nc2 {[%clk 0:02:14.1]} 16. Rac1 {[%clk 0:00:52.8]}
16... Nd4 {[%clk 0:02:13.7]} 17. Kf1 {[%clk 0:00:50]} 17... b6 {[%clk
0:02:05.9]} 18. Nb3 {[%clk 0:00:49.8]} 18... Nxb3 {[%clk 0:02:05]} 19. axb3
{[%clk 0:00:50.7]} 19... Bb7 {[%clk 0:02:04.9]} 20. Be3 {[%clk 0:00:46.2]} 20...
b5 {[%clk 0:01:59.8]} 21. f4 {[%clk 0:00:41.9]} 21... Ng4 {[%clk 0:01:57.4]} 22.
Bg1 {[%clk 0:00:39.8]} 22... Rad8 {[%clk 0:01:51.1]} 23. h3 {[%clk 0:00:33.5]}
23... Bxe4 {[%clk 0:01:40.5]} 24. Bxe4 {[%clk 0:00:31.6]} 24... Nf6 {[%clk
0:01:41.1]} 25. Bb7 {[%clk 0:00:28.4]} 25... a5 {[%clk 0:01:25]} 26. cxb5 {[%clk
0:00:26.4]} 26... Rb8 {[%clk 0:01:22.8]} 27. Bc6 {[%clk 0:00:26.2]} 27... Bb4
{[%clk 0:01:20.6]} 28. g4 {[%clk 0:00:23.3]} 28... Rfd8 {[%clk 0:01:14.9]} 29.
Bd4 {[%clk 0:00:22.6]} 29... Nd5 {[%clk 0:01:12.8]} 30. Be5 {[%clk 0:00:21]}
30... Ne3+ {[%clk 0:01:11.4]} 31. Ke2 {[%clk 0:00:20.3]} 31... Nxd1 {[%clk
0:01:09.3]} 32. Bxb8 {[%clk 0:00:18.6]} 32... Nxb2 {[%clk 0:01:07.7]} 33. Be5
{[%clk 0:00:14.7]} 33... Rd2+ {[%clk 0:00:53.6]} 34. Kf1 {[%clk 0:00:14.5]}
34... Nd3 {[%clk 0:00:53.4]} 35. Rb1 {[%clk 0:00:09.7]} 35... Nxe5 {[%clk
0:00:48.3]} 36. fxe5 {[%clk 0:00:10.6]} 36... Rd3 {[%clk 0:00:41.7]} 37. b6
{[%clk 0:00:07.9]} 37... Rd8 {[%clk 0:00:32.5]} 38. b7 {[%clk 0:00:08]} 38...
Bc3 {[%clk 0:00:31.7]} 39. Rc1 {[%clk 0:00:04.1]} 39... Bxe5 {[%clk 0:00:31.7]}
40. Rc5 {[%clk 0:00:04.2]} 40... Bd6 {[%clk 0:00:30.5]} 41. Rxa5 {[%clk
0:00:03.7]} 41... Bb8 {[%clk 0:00:28.6]} 42. Ra8 {[%clk 0:00:03]} 42... Kf8
{[%clk 0:00:27.7]} 43. Ke2 {[%clk 0:00:03]} 43... Ke7 {[%clk 0:00:27.7]} 44. b4
{[%clk 0:00:03.6]} 44... Kd6 {[%clk 0:00:27.5]} 45. b5 {[%clk 0:00:03.8]} 45...
Kc5 {[%clk 0:00:27]} 46. Ra3 {[%clk 0:00:03.2]} 46... Kb6 {[%clk 0:00:24.9]} 47.
Rf3 {[%clk 0:00:03]} 47... f6 {[%clk 0:00:24]} 48. g5 {[%clk 0:00:02.8]} 48...
f5 {[%clk 0:00:22.7]} 0-1